bitfinex-derivatives/quotes_BTCF0:USTF0_20260104
["timestamp","ask_amount","ask_price","bid_price","bid_amount"]
[1767509468825,0.0001642,91369.0,91361.0,0.01095]
[1767509469138,0.12300221,91381.0,91364.0,0.01095]
[1767509469325,0.11205421,91381.0,91360.0,0.11246916]
[1767509469526,0.11205421,91381.0,91362.0,0.02400539]
[1767509469734,0.11205421,91381.0,91365.0,0.010949]
[1767509470724,0.12300221,91381.0,91365.0,0.010949]
[1767509471521,0.11205421,91381.0,91362.0,0.02400539]
[1767509472137,0.12300221,91381.0,91366.0,0.010949]
[1767509472527,0.12300221,91381.0,91363.0,0.01095]
[1767509473130,0.0244127,91380.0,91362.0,0.02400539]
[1767509473336,0.0244127,91377.0,91359.0,0.01095]
[1767509473537,0.0244127,91376.0,91359.0,0.01095]
[1767509473737,0.0353607,91376.0,91359.0,0.01095]
[1767509474036,0.0244127,91375.0,91359.0,0.01095]
[1767509474838,0.0244127,91375.0,91361.0,0.01095]
[1767509476332,0.08764151,91377.0,91370.0,0.010949]
[1767509476532,0.0266014,91379.0,91367.0,0.010949]
[1767509477937,0.0244127,91377.0,91364.0,0.01095]
[1767509478632,0.0244127,91377.0,91361.0,0.01095]
[1767509479433,0.0244127,91377.0,91362.0,0.01095]
[1767509479736,0.0244127,91374.0,91355.0,0.08846377]
[1767509479936,0.0244127,91373.0,91360.0,0.01095]
[1767509480837,0.11205421,91370.0,91349.0,0.010951]
[1767509481044,0.0244127,91367.0,91351.0,0.09308]
[1767509481439,0.0244127,91370.0,91351.0,0.09308]
[1767509481737,0.08764151,91371.0,91357.0,0.01095]
[1767509482241,0.0244127,91373.0,91355.0,0.010951]
[1767509482446,0.0244127,91376.0,91355.0,0.02400539]
[1767509482746,0.0244127,91376.0,91362.0,0.01095]
[1767509483452,0.0244127,91375.0,91360.0,0.01095]
[1767509483746,0.0244127,91374.0,91360.0,0.01095]
[1767509484140,0.0353607,91374.0,91360.0,0.01095]
[1767509484442,0.0244127,91373.0,91360.0,0.01095]
[1767509485752,0.0353617,91369.0,91354.0,0.09308]
[1767509486042,0.0244127,91368.0,91354.0,0.104031]
[1767509486248,0.0244127,91368.0,91358.0,0.01095]
[1767509486549,0.11205421,91371.0,91358.0,0.01095]
[1767509486750,0.11205421,91371.0,91359.0,0.01095]
[1767509488547,0.0244127,91372.0,91359.0,0.01095]
[1767509489550,0.0244127,91371.0,91356.0,0.01095]
[1767509489848,0.0244127,91370.0,91353.0,0.104031]
[1767509490054,0.02437309,91363.0,91350.0,0.0932442]
[1767509490352,0.02437309,91361.0,91351.0,0.010951]
[1767509490750,0.03532409,91357.0,91345.0,0.09308]
[1767509490953,0.02437309,91355.0,91345.0,0.09308]
[1767509491748,0.02437309,91355.0,91336.0,0.02226274]
[1767509491945,0.02453729,91355.0,91336.0,0.02242694]
[1767509492147,0.02453729,91355.0,91337.0,0.09308]
[1767509492548,0.0543147,91350.0,91338.0,0.09308]
[1767509492744,0.0001642,91355.0,91348.0,0.010952]
[1767509492947,0.0543147,91360.0,91352.0,0.010951]
[1767509493254,0.0543147,91362.0,91352.0,0.010951]
[1767509493852,0.0543147,91370.0,91351.0,0.09413853]
[1767509494055,0.0544789,91370.0,91355.0,0.02176434]
[1767509494246,0.0544789,91370.0,91357.0,0.02176434]
[1767509494453,0.010949,91369.0,91356.0,0.010951]
[1767509494757,0.0544789,91370.0,91356.0,0.010951]
[1767509494952,0.0544789,91370.0,91359.0,0.01095]
[1767509496653,0.0001642,91370.0,91357.0,0.02176434]
[1767509496858,0.0544789,91370.0,91365.0,0.01095]
[1767509497059,0.010948,91377.0,91365.0,0.01095]
[1767509497258,0.0952687,91379.0,91359.0,0.09308]
[1767509497259,0.0952687,91379.0,91363.0,0.11590287]
[1767509497452,0.09308,91389.0,91375.0,0.010948]
[1767509497653,0.09308,91389.0,91376.0,0.02176434]
[1767509497853,0.09308,91389.0,91379.0,0.010948]
[1767509498064,0.0543147,91390.0,91376.0,0.02176434]
[1767509498359,0.0001642,91392.0,91386.0,0.010947]
[1767509498546,0.010945,91402.0,91386.0,0.010947]
[1767509499160,0.010945,91402.0,91384.0,0.09308]
[1767509499352,0.010945,91402.0,91385.0,0.010947]
[1767509500162,0.02347936,91403.0,91385.0,0.010947]
[1767509500456,0.010945,91405.0,91386.0,0.09308]
[1767509500756,0.02347936,91410.0,91388.0,0.02176434]
[1767509500965,0.0543147,91410.0,91398.0,0.010946]
[1767509501269,0.0001642,91408.0,91398.0,0.010946]
[1767509502364,0.010943,91416.0,91394.0,0.00016411]
[1767509502365,0.02347936,91422.0,91402.0,0.010945]
[1767509502565,0.0543147,91412.0,91400.0,0.12684787]
[1767509502769,0.0543147,91410.0,91402.0,0.010945]
[1767509503070,0.02347936,91419.0,91402.0,0.010945]
[1767509503472,0.02347936,91419.0,91403.0,0.09308]
[1767509504171,0.02347936,91419.0,91404.0,0.010945]
[1767509504365,0.0543147,91420.0,91406.0,0.010945]
[1767509505264,0.0543147,91420.0,91403.0,0.104025]
[1767509505573,0.0543147,91420.0,91408.0,0.010944]
[1767509507266,0.0543147,91420.0,91409.0,0.09308]
[1767509509363,0.02347936,91422.0,91409.0,0.09308]
[1767509509569,0.07779406,91420.0,91409.0,0.09308]
[1767509509774,0.07779406,91420.0,91408.0,0.04443852]
[1767509512369,0.02347936,91420.0,91408.0,0.04443852]
[1767509512575,0.07779406,91420.0,91408.0,0.05538252]
[1767509513077,0.09066595,91422.0,91408.0,0.05538252]
[1767509513275,0.07779406,91420.0,91408.0,0.09304]
[1767509513467,0.02347936,91420.0,91408.0,0.09304]
[1767509513666,0.02347936,91416.0,91408.0,0.06795937]
[1767509514575,0.09066595,91417.0,91408.0,0.06795937]
[1767509515576,0.09066595,91417.0,91409.0,0.010944]
[1767509516568,0.09066595,91417.0,91411.0,0.010944]
[1767509517269,0.02347936,91420.0,91409.0,0.010944]
[1767509517779,0.02347936,91420.0,91410.0,0.010944]
[1767509518770,0.02347936,91420.0,91411.0,0.010944]
[1767509520582,0.02347936,91420.0,91399.0,0.010945]
[1767509520583,0.02328132,91418.0,91406.0,0.010945]
[1767509520777,0.02328132,91418.0,91408.0,0.010944]
[1767509520980,0.11669863,91415.0,91394.0,0.02388695]
[1767509521175,0.0543147,91404.0,91400.0,0.010945]
[1767509521369,0.02328132,91409.0,91401.0,0.010945]
[1767509521776,0.09341731,91410.0,91401.0,0.010945]
[1767509521980,0.0543147,91411.0,91396.0,0.010946]
[1767509522285,0.00016389,91414.0,91409.0,0.010944]
[1767509523378,0.00016389,91414.0,91405.0,0.010945]
[1767509524977,0.00016389,91414.0,91403.0,0.010945]
[1767509525188,0.0543147,91413.0,91403.0,0.010945]
[1767509525883,0.0543147,91413.0,91399.0,0.09304]
[1767509525884,0.01401047,91408.0,91399.0,0.09304]
[1767509526088,0.01401047,91408.0,91397.0,0.010946]
[1767509526283,0.0543147,91407.0,91397.0,0.09304]
[1767509526480,0.09341731,91409.0,91397.0,0.09304]
[1767509526676,0.0543147,91410.0,91397.0,0.09304]
[1767509529388,0.0543147,91410.0,91400.0,0.010945]
[1767509529787,0.0543147,91410.0,91397.0,0.103986]
[1767509530191,0.0543147,91410.0,91399.0,0.010945]
[1767509530389,0.0543147,91410.0,91397.0,0.09304]
[1767509530585,0.0543147,91410.0,91398.0,0.010946]
[1767509530990,0.0543147,91410.0,91394.0,0.00016411]
[1767509530991,0.0543147,91408.0,91395.0,0.09304]
[1767509531294,0.0543147,91404.0,91394.0,0.00016411]
[1767509532284,0.0543147,91404.0,91394.0,0.01111011]
[1767509533286,0.0543147,91404.0,91396.0,0.010946]
[1767509533485,0.0543147,91406.0,91396.0,0.010946]
[1767509535085,0.0543147,91406.0,91397.0,0.010946]
[1767509535392,0.14773201,91407.0,91394.0,0.00016411]
[1767509535598,0.0543147,91404.0,91394.0,0.00016411]
[1767509535897,0.0543147,91404.0,91401.0,0.0080995]
[1767509536089,0.10483851,91409.0,91394.0,0.00016411]
[1767509536392,0.0543147,91404.0,91394.0,0.00016411]
[1767509536589,7e-07,91404.0,91403.0,0.010945]
[1767509536889,0.10483851,91409.0,91404.0,0.010945]
[1767509537093,0.05447859,91414.0,91407.0,0.010944]
[1767509537286,0.00016389,91414.0,91407.0,0.010944]
[1767509538998,0.00698192,91413.0,91407.0,0.010944]
[1767509542201,0.40698192,91413.0,91405.0,0.010945]
[1767509542383,0.40698192,91413.0,91395.0,0.09104888]
[1767509542384,0.00698192,91413.0,91395.0,0.09104888]
[1767509542588,0.00698192,91413.0,91407.0,0.010944]
[1767509542589,0.0543147,91410.0,91407.0,0.010944]
[1767509542797,0.00698192,91413.0,91407.0,0.010944]
[1767509543203,0.00698192,91413.0,91404.0,0.010945]
[1767509543689,0.00016389,91414.0,91404.0,0.010945]
[1767509543890,0.05447859,91414.0,91404.0,0.010945]
[1767509544399,0.0543147,91420.0,91413.0,0.010944]
[1767509544601,0.02531864,91419.0,91413.0,0.010944]
[1767509544899,0.1086294,91423.0,91406.0,0.02372284]
[1767509545098,0.0543147,91416.0,91406.0,0.02372284]
[1767509545293,7e-07,91416.0,91406.0,0.02372284]
[1767509545498,7e-07,91416.0,91404.0,0.09104888]
[1767509545499,0.0543147,91420.0,91417.0,0.010943]
[1767509545697,0.0543147,91427.0,91417.0,0.010943]
[1767509545889,0.02532169,91426.0,91417.0,0.010943]
[1767509546199,0.02532169,91425.0,91417.0,0.010943]
[1767509546504,0.02532169,91424.0,91417.0,0.010943]
[1767509546693,0.02532169,91423.0,91417.0,0.010943]
[1767509546893,0.02532169,91423.0,91413.0,0.00016411]
[1767509546894,0.0543147,91427.0,91419.0,0.010943]
[1767509547094,0.0543147,91429.0,91419.0,0.010943]
[1767509547601,0.0543147,91429.0,91417.0,0.010943]
[1767509547796,0.0543147,91427.0,91417.0,0.010943]
[1767509548904,0.1473547,91430.0,91418.0,0.11477172]
[1767509549701,0.1473547,91430.0,91418.0,0.09104888]
[1767509550303,0.1473547,91430.0,91421.0,0.010943]
[1767509550695,0.1473547,91430.0,91418.0,0.10199188]
[1767509551401,0.0543147,91430.0,91420.0,0.010943]
[1767509552501,0.10166688,91437.0,91420.0,0.010943]
[1767509553407,0.01930302,91435.0,91419.0,0.010943]
[1767509554107,0.01930302,91435.0,91418.0,0.10199188]
[1767509554806,0.00836202,91435.0,91420.0,0.010943]
[1767509557202,0.09304,91437.0,91422.0,0.010943]
[1767509557404,0.09304,91437.0,91420.0,0.12639706]
[1767509557803,0.09304,91437.0,91420.0,0.10203591]
[1767509557998,0.11254234,91437.0,91420.0,0.09109291]
[1767509558394,0.00856134,91435.0,91415.0,0.11545406]
[1767509558599,0.010942,91430.0,91414.0,0.010944]
[1767509558800,0.01923928,91430.0,91414.0,0.010944]
[1767509558998,0.00829728,91430.0,91414.0,0.010944]
[1767509559406,0.00829728,91430.0,91416.0,0.010943]
[1767509560113,0.00803351,91428.0,91413.0,0.01110811]
[1767509560300,0.00803351,91426.0,91413.0,0.01110811]
[1767509562413,0.010942,91429.0,91413.0,0.01110811]
[1767509562910,0.01853307,91429.0,91413.0,0.01110811]
[1767509563113,0.00759107,91428.0,91413.0,0.01110811]
[1767509563705,0.00759107,91428.0,91413.0,0.00016411]
[1767509563706,0.09816618,91428.0,91413.0,0.00016411]
[1767509563910,0.010942,91426.0,91413.0,0.00016411]
[1767509564105,0.00732966,91425.0,91413.0,0.00016411]
[1767509564914,0.00732966,91425.0,91413.0,0.01110811]
[1767509566117,0.00732966,91425.0,91413.0,0.00016411]
[1767509570219,0.01827166,91425.0,91413.0,0.00016411]
[1767509570616,0.00732966,91425.0,91414.0,0.010944]
[1767509571217,0.00732966,91425.0,91413.0,0.00016411]
[1767509571218,0.00530089,91430.0,91416.0,0.010943]
[1767509571424,0.02497008,91429.0,91413.0,0.00016411]
[1767509571619,0.00530089,91430.0,91416.0,0.010943]
[1767509571924,0.02496995,91429.0,91416.0,0.010943]
[1767509572127,0.00530089,91430.0,91416.0,0.010943]
[1767509572315,0.02497381,91429.0,91416.0,0.010943]
[1767509572515,0.02497381,91428.0,91416.0,0.010943]
[1767509572720,0.00530089,91430.0,91416.0,0.010943]
[1767509572922,0.02983909,91429.0,91416.0,0.010943]
[1767509573121,0.02983909,91428.0,91414.0,0.010944]
[1767509573425,0.0048653,91428.0,91414.0,0.010944]
[1767509573619,0.0048653,91428.0,91416.0,0.010943]
[1767509573821,0.02497865,91427.0,91416.0,0.010943]
[1767509574022,0.0048653,91428.0,91416.0,0.010943]
[1767509574218,0.02497866,91427.0,91416.0,0.010943]
[1767509574425,0.02497866,91426.0,91416.0,0.010943]
[1767509574620,0.00295694,91429.0,91416.0,0.010943]
[1767509574820,0.02498548,91428.0,91416.0,0.010943]
[1767509575014,0.02498548,91427.0,91416.0,0.010943]
[1767509575219,0.02498548,91426.0,91416.0,0.010943]
[1767509575420,0.02498548,91425.0,91416.0,0.010943]
[1767509575621,0.00295694,91429.0,91416.0,0.010943]
[1767509575821,0.0249916,91428.0,91416.0,0.010943]
[1767509576030,0.0249916,91427.0,91416.0,0.010943]
[1767509576229,0.0249916,91426.0,91416.0,0.010943]
[1767509576425,0.0249916,91425.0,91416.0,0.010943]
[1767509576729,0.00295694,91429.0,91416.0,0.010943]
[1767509576916,0.02499717,91428.0,91416.0,0.010943]
[1767509577117,0.02499717,91427.0,91416.0,0.010943]
[1767509577314,0.02499717,91426.0,91416.0,0.010943]
[1767509577530,0.02499717,91425.0,91416.0,0.010943]
[1767509577728,0.02499717,91424.0,91416.0,0.010943]
[1767509577929,0.00295694,91429.0,91416.0,0.010943]
[1767509578231,0.02499783,91428.0,91416.0,0.010943]
[1767509578524,0.02499783,91427.0,91416.0,0.010943]
[1767509578728,0.02499783,91426.0,91418.0,0.010943]
[1767509578924,0.02499783,91425.0,91416.0,0.010943]
[1767509579128,0.09304,91431.0,91416.0,0.010943]
[1767509579329,0.02500095,91430.0,91416.0,0.010943]
[1767509579529,0.02500095,91429.0,91416.0,0.010943]
[1767509579829,0.02500095,91428.0,91416.0,0.010943]
[1767509580028,0.02500095,91427.0,91418.0,0.010943]
[1767509580330,0.02500095,91426.0,91420.0,0.010943]
[1767509580530,0.02500095,91425.0,91420.0,0.010943]
[1767509580732,0.09304,91431.0,91420.0,0.010943]
[1767509580924,0.0250036,91430.0,91420.0,0.010943]
[1767509581225,0.0250036,91429.0,91420.0,0.010943]
[1767509581531,0.0250036,91428.0,91417.0,0.010943]
[1767509581730,0.0250036,91427.0,91417.0,0.010943]
[1767509581935,0.0250036,91426.0,91417.0,0.010943]
[1767509582121,0.0250036,91425.0,91417.0,0.010943]
[1767509582321,0.09304,91431.0,91417.0,0.010943]
[1767509582521,0.02500485,91430.0,91416.0,0.010943]
[1767509582732,0.02500485,91429.0,91416.0,0.010943]
[1767509582931,0.02500485,91428.0,91416.0,0.010943]
[1767509583228,0.02500485,91427.0,91416.0,0.010943]
[1767509583432,0.02500405,91426.0,91416.0,0.010943]
[1767509583629,0.02500405,91425.0,91416.0,0.010943]
[1767509583829,0.09304,91431.0,91416.0,0.010943]
[1767509584032,0.02500492,91430.0,91416.0,0.010943]
[1767509584329,0.02500492,91429.0,91416.0,0.010943]
[1767509584530,0.02500492,91428.0,91416.0,0.010943]
[1767509584732,0.02500492,91427.0,91416.0,0.010943]
[1767509585030,0.02500492,91426.0,91416.0,0.010943]
[1767509585225,0.02500492,91425.0,91416.0,0.010943]
[1767509585426,0.02500492,91424.0,91416.0,0.010943]
[1767509585628,0.0008323,91430.0,91416.0,0.010943]
[1767509585831,0.02500664,91429.0,91416.0,0.010943]
[1767509586034,0.02500664,91428.0,91416.0,0.010943]
[1767509586333,0.02500664,91427.0,91416.0,0.010943]
[1767509586533,0.02500664,91426.0,91416.0,0.010943]
[1767509586734,0.02500664,91425.0,91416.0,0.010943]
[1767509586933,0.02500664,91424.0,91416.0,0.010943]
[1767509587148,0.0008323,91430.0,91416.0,0.010943]
[1767509587349,0.02500944,91429.0,91416.0,0.010943]
[1767509587549,0.02500944,91428.0,91416.0,0.010943]
[1767509587750,0.02500944,91427.0,91416.0,0.010943]
[1767509587943,0.02500944,91426.0,91416.0,0.010943]
[1767509588143,0.02500944,91425.0,91416.0,0.010943]
[1767509588345,0.02500944,91424.0,91416.0,0.010943]
[1767509588545,0.0008323,91430.0,91416.0,0.010943]
[1767509588746,0.02501117,91429.0,91416.0,0.010943]
[1767509588946,0.02501117,91428.0,91416.0,0.010943]
[1767509589254,0.02501117,91427.0,91416.0,0.010943]
[1767509589452,0.02501117,91426.0,91416.0,0.010943]
[1767509589753,0.02501117,91425.0,91416.0,0.010943]
[1767509590050,0.02501117,91424.0,91416.0,0.010943]
[1767509590253,0.0008323,91430.0,91416.0,0.010943]
[1767509590454,0.02501085,91429.0,91416.0,0.010943]
[1767509590647,0.02501085,91428.0,91416.0,0.010943]
[1767509590849,0.02501085,91427.0,91416.0,0.010943]
[1767509591053,0.02501085,91426.0,91416.0,0.010943]
[1767509591256,0.02501085,91425.0,91416.0,0.010943]
[1767509591445,0.00145157,91424.0,91419.0,0.10673182]
[1767509591645,0.09304,91431.0,91420.0,0.09578882]
[1767509592050,0.09304,91431.0,91420.0,0.10673182]
[1767509592956,0.09304,91431.0,91420.0,0.010943]
[1767509594854,0.11606442,91431.0,91418.0,0.010943]
[1767509595155,0.02302442,91430.0,91418.0,0.010943]
[1767509595754,0.02302442,91430.0,91415.0,0.010943]
[1767509596658,0.02302442,91430.0,91414.0,0.09578882]
[1767509597355,0.02302442,91430.0,91417.0,0.010943]
[1767509598551,0.02302442,91430.0,91419.0,0.010943]
[1767509598751,0.09304,91431.0,91419.0,0.010943]
[1767509601159,0.09304,91431.0,91420.0,0.010943]
[1767509602459,0.09304,91431.0,91418.0,0.010943]
[1767509602763,0.09304,91431.0,91420.0,0.010943]
[1767509603659,0.02491378,91430.0,91420.0,0.010943]
[1767509603957,0.02491378,91429.0,91420.0,0.010943]
[1767509604159,0.02491378,91428.0,91420.0,0.010943]
[1767509604358,0.02491378,91427.0,91420.0,0.010943]
[1767509604549,0.02491378,91426.0,91420.0,0.010943]
[1767509604755,0.02491378,91425.0,91420.0,0.010943]
[1767509604946,0.02491378,91424.0,91420.0,0.010943]
[1767509605147,0.09304,91431.0,91420.0,0.010943]
[1767509605356,0.02491627,91430.0,91420.0,0.010943]
[1767509605556,0.02491627,91429.0,91420.0,0.010943]
[1767509605757,0.02491627,91428.0,91420.0,0.010943]
[1767509605956,0.02491627,91427.0,91420.0,0.010943]
[1767509606264,0.02491627,91426.0,91420.0,0.010943]
[1767509606467,0.02491627,91425.0,91420.0,0.010943]
[1767509606666,0.02491627,91424.0,91420.0,0.010943]
[1767509606865,0.02491627,91423.0,91420.0,0.010943]
[1767509607167,0.09304,91431.0,91420.0,0.010943]
[1767509607464,0.02492292,91430.0,91420.0,0.010943]
[1767509607660,0.02492292,91429.0,91420.0,0.010943]
[1767509607860,0.02179938,91427.0,91413.0,0.00016411]
[1767509608062,0.02492292,91426.0,91414.0,0.010944]
[1767509608262,0.02492292,91425.0,91414.0,0.010944]
[1767509608561,0.02492292,91424.0,91416.0,0.010943]
[1767509608764,0.02179938,91427.0,91416.0,0.010943]
[1767509609064,0.02492334,91426.0,91416.0,0.010943]
[1767509609267,0.02492334,91425.0,91416.0,0.010943]
[1767509609454,0.02492334,91424.0,91414.0,0.010944]
[1767509609765,0.02138795,91425.0,91413.0,0.00016411]
[1767509609966,0.0249245,91424.0,91413.0,0.00016411]
[1767509610161,0.02138795,91425.0,91413.0,0.00016411]
[1767509610362,0.02492476,91424.0,91413.0,0.00016411]
[1767509610563,0.02138795,91425.0,91413.0,0.00016411]
[1767509610868,0.02492463,91424.0,91413.0,0.00016411]
[1767509611069,0.02138795,91425.0,91413.0,0.00016411]
[1767509611269,0.02492462,91424.0,91414.0,0.010944]
[1767509611469,0.02138795,91425.0,91414.0,0.010944]
[1767509611671,0.0249241,91424.0,91414.0,0.010944]
[1767509611871,0.02138795,91425.0,91414.0,0.010944]
[1767509612066,0.02492367,91424.0,91415.0,0.010943]
[1767509612266,0.02138795,91425.0,91415.0,0.010943]
[1767509612467,0.02492372,91424.0,91415.0,0.010943]
[1767509612667,0.02138795,91425.0,91415.0,0.010943]
[1767509612867,0.0249237,91424.0,91415.0,0.010943]
[1767509613068,0.02138795,91425.0,91415.0,0.010943]
[1767509613270,0.02492375,91424.0,91415.0,0.010943]
[1767509613465,0.02138795,91425.0,91417.0,0.010943]
[1767509613772,0.02492376,91424.0,91417.0,0.010943]
[1767509613974,0.09031204,91428.0,91417.0,0.010943]
[1767509614169,0.0249235,91427.0,91417.0,0.010943]
[1767509614372,0.0249235,91426.0,91417.0,0.010943]
[1767509614573,0.0249235,91425.0,91417.0,0.010943]
[1767509614871,0.0249235,91424.0,91417.0,0.010943]
[1767509615071,0.05422318,91427.0,91417.0,0.010943]
[1767509615273,0.02492358,91426.0,91417.0,0.010943]
[1767509615470,0.02492358,91425.0,91417.0,0.010943]
[1767509615670,0.02492358,91424.0,91417.0,0.010943]
[1767509615870,0.05422318,91427.0,91415.0,0.010944]
[1767509616072,0.05422318,91425.0,91415.0,0.010944]
[1767509616270,0.02492342,91424.0,91415.0,0.010944]
[1767509616467,0.05422318,91425.0,91415.0,0.010944]
[1767509618165,0.09304,91431.0,91413.0,0.11988704]
[1767509618371,0.07914367,91430.0,91418.0,0.11972293]
[1767509618564,0.02492049,91429.0,91418.0,0.11972293]
[1767509618971,0.02492049,91429.0,91418.0,0.09887781]
[1767509619265,0.02492049,91429.0,91420.0,0.010943]
[1767509620178,0.02492049,91429.0,91418.0,0.11972293]
[1767509620572,0.02492049,91429.0,91420.0,0.010943]
[1767509622973,0.02492049,91429.0,91414.0,0.09304]
[1767509623176,0.05422318,91424.0,91413.0,0.00016411]
[1767509623371,0.01804033,91423.0,91413.0,0.00016411]
[1767509624676,0.07226351,91423.0,91413.0,0.00016411]
[1767509627282,0.01707766,91422.0,91413.0,0.00016411]
[1767509629182,0.05422318,91423.0,91413.0,0.00016411]
[1767509633883,0.05422318,91423.0,91414.0,0.010944]
[1767509634480,0.05422318,91423.0,91413.0,0.00016411]
[1767509634780,0.01603778,91424.0,91413.0,0.00016411]
[1767509634982,0.05422318,91423.0,91413.0,0.00016411]
[1767509635587,0.06944901,91423.0,91413.0,0.00016411]
[1767509637191,0.06944901,91423.0,91413.0,0.01110811]
[1767509637787,0.05422318,91423.0,91413.0,0.00016411]
[1767509638092,0.0148194,91426.0,91417.0,0.010943]
[1767509638393,0.05422318,91430.0,91417.0,0.010943]
[1767509638696,0.02443031,91429.0,91417.0,0.010943]
[1767509638993,0.02443031,91428.0,91417.0,0.010943]
[1767509639182,0.02443031,91427.0,91417.0,0.010943]
[1767509639487,0.02443031,91426.0,91417.0,0.010943]
[1767509639677,0.05422318,91430.0,91417.0,0.010943]
[1767509639877,0.0244304,91429.0,91417.0,0.010943]
[1767509640097,0.0244304,91428.0,91419.0,0.010943]
[1767509640289,0.0244304,91427.0,91414.0,0.11962526]
[1767509640488,0.05422318,91430.0,91419.0,0.11962526]
[1767509640791,0.02442834,91429.0,91419.0,0.11962526]
[1767509641090,0.05422318,91430.0,91419.0,0.09968285]
[1767509641290,0.05422318,91430.0,91422.0,0.010943]
[1767509641591,0.09304,91431.0,91422.0,0.010943]
[1767509641790,0.02436709,91430.0,91422.0,0.010943]
[1767509641990,0.09304,91431.0,91422.0,0.010943]
[1767509642193,0.02436694,91430.0,91422.0,0.010943]
[1767509642392,0.09304,91431.0,91422.0,0.010943]
[1767509642593,0.02436544,91430.0,91422.0,0.010943]
[1767509642793,0.05422318,91432.0,91422.0,0.010943]
[1767509642988,0.02436555,91431.0,91419.0,0.11062585]
[1767509643189,0.07858873,91430.0,91419.0,0.09968285]
[1767509643396,0.05422318,91430.0,91420.0,0.010943]
[1767509643998,0.05422318,91430.0,91421.0,0.010943]
[1767509644903,0.05422318,91430.0,91423.0,0.010943]
[1767509645202,0.05422318,91433.0,91423.0,0.010943]
[1767509645401,0.02436172,91432.0,91423.0,0.010943]
[1767509645604,0.02436172,91431.0,91423.0,0.010943]
[1767509645806,0.02436172,91430.0,91423.0,0.010943]
[1767509646005,0.05422318,91433.0,91423.0,0.010943]
[1767509646304,0.02436163,91432.0,91423.0,0.010943]
[1767509646504,0.02436163,91431.0,91423.0,0.010943]
[1767509646697,0.02436163,91430.0,91423.0,0.010943]
[1767509646896,0.05422318,91433.0,91425.0,0.010942]
[1767509647202,0.02436157,91432.0,91425.0,0.010942]
[1767509647397,0.02436157,91431.0,91425.0,0.010942]
[1767509647603,0.02436157,91430.0,91425.0,0.010942]
[1767509647804,0.05422318,91435.0,91425.0,0.010942]
[1767509647998,0.02436049,91434.0,91425.0,0.010942]
[1767509648304,0.02436049,91433.0,91425.0,0.010942]
[1767509648501,0.02436049,91432.0,91425.0,0.010942]
[1767509648703,0.02436049,91431.0,91425.0,0.010942]
[1767509648904,0.02436049,91430.0,91425.0,0.010942]
[1767509649105,0.05422318,91435.0,91425.0,0.010942]
[1767509649296,0.02435919,91434.0,91422.0,0.010943]
[1767509649493,0.05422318,91432.0,91422.0,0.010943]
[1767509649805,0.02435919,91431.0,91422.0,0.010943]
[1767509650006,0.02435919,91430.0,91422.0,0.010943]
[1767509650308,0.05422318,91432.0,91422.0,0.010943]
[1767509650499,0.02435801,91431.0,91422.0,0.010943]
[1767509650699,0.02435801,91430.0,91422.0,0.010943]
[1767509650899,0.05422318,91432.0,91422.0,0.010943]
[1767509651207,0.024356,91431.0,91415.0,0.01994241]
[1767509651409,0.07857918,91430.0,91415.0,0.11962526]
[1767509651709,0.05422318,91430.0,91415.0,0.11962526]
[1767509651897,0.05422318,91430.0,91417.0,0.09968285]
[1767509652097,0.05422318,91430.0,91417.0,0.11062585]
[1767509652507,0.05422318,91430.0,91425.0,0.010942]
[1767509652704,0.01273115,91435.0,91425.0,0.010942]
[1767509652705,0.06695433,91435.0,91425.0,0.010942]
[1767509652904,0.02435393,91434.0,91425.0,0.010942]
[1767509653104,0.02435393,91433.0,91425.0,0.010942]
[1767509653301,0.02435393,91432.0,91425.0,0.010942]
[1767509653501,0.02435393,91431.0,91425.0,0.010942]
[1767509653701,0.06695433,91435.0,91425.0,0.010942]
[1767509653908,0.02435301,91434.0,91425.0,0.010942]
[1767509654211,0.06695433,91435.0,91425.0,0.010942]
[1767509654212,0.02435301,91433.0,91425.0,0.010942]
[1767509654402,0.02435301,91432.0,91425.0,0.010942]
[1767509654603,0.02435235,91431.0,91425.0,0.010942]
[1767509654808,0.06695433,91435.0,91426.0,0.010942]
[1767509655002,0.02435233,91434.0,91426.0,0.010942]
[1767509655202,0.02435233,91433.0,91426.0,0.010942]
[1767509655405,0.02435233,91432.0,91426.0,0.010942]
[1767509655709,0.06695433,91435.0,91426.0,0.010942]
[1767509655904,0.03534265,91434.0,91424.0,0.010942]
[1767509656104,0.02424619,91433.0,91424.0,0.010942]
[1767509656306,0.02424619,91432.0,91424.0,0.010942]
[1767509656503,0.01109646,91434.0,91424.0,0.010942]
[1767509656709,0.02424547,91433.0,91424.0,0.010942]
[1767509656908,0.01109646,91434.0,91424.0,0.010942]
[1767509657110,0.02424547,91433.0,91424.0,0.010942]
[1767509657404,0.01109646,91434.0,91424.0,0.010942]
[1767509657610,0.02424523,91433.0,91424.0,0.010942]
[1767509657811,0.01109646,91434.0,91424.0,0.010942]
[1767509658108,0.02424525,91433.0,91426.0,0.010942]
[1767509658301,0.00218726,91439.0,91426.0,0.010942]
[1767509658497,0.05422318,91436.0,91426.0,0.010942]
[1767509658813,0.02424523,91435.0,91426.0,0.010942]
[1767509660707,0.02424523,91435.0,91413.0,0.01110811]
[1767509660708,0.00218726,91439.0,91423.0,0.11962526]
[1767509660902,0.02424772,91438.0,91424.0,0.11962526]
[1767509661103,0.00218726,91439.0,91424.0,0.11962526]
[1767509661412,0.00218726,91439.0,91429.0,0.010942]
[1767509661913,0.0245445,91438.0,91429.0,0.010942]
[1767509662112,0.00218726,91439.0,91429.0,0.010942]
[1767509662414,0.02454494,91438.0,91429.0,0.010942]
[1767509662606,0.00218726,91439.0,91429.0,0.010942]
[1767509662812,0.02454269,91438.0,91429.0,0.010942]
[1767509663114,0.00218726,91439.0,91429.0,0.010942]
[1767509663417,0.02454317,91438.0,91429.0,0.010942]
[1767509663601,0.00218726,91439.0,91429.0,0.010942]
[1767509663804,0.02454136,91438.0,91429.0,0.010942]
[1767509664018,0.00218726,91439.0,91429.0,0.010942]
[1767509664207,0.02454136,91438.0,91429.0,0.010942]
[1767509664405,0.00218726,91439.0,91429.0,0.010942]
[1767509664612,0.02454049,91438.0,91429.0,0.010942]
[1767509664916,0.00218726,91439.0,91424.0,0.09968285]
[1767509665114,0.00218726,91439.0,91424.0,0.11962526]
[1767509665415,0.00218726,91439.0,91429.0,0.010942]
[1767509665609,0.00218726,91439.0,91430.0,0.010942]
[1767509666217,0.00218726,91439.0,91431.0,0.010942]